bitfinex/quotes_ETHUSD_20241104
["timestamp","ask_amount","ask_price","bid_price","bid_amount"]
[1730739643789,8.07557443,2410.1,2409.7,0.0599721]
[1730739643989,8.07557443,2410.1,2408.6,2.382465]
[1730739643990,0.8288,2409.5,2409.4,3.98272]
[1730739644191,4.15023,2409.5,2409.4,3.98272]
[1730739644394,0.8288,2409.9,2409.4,3.98272]
[1730739644591,3.0,2410.3,2409.5,0.398272]
[1730739644592,0.55,2410.3,2409.5,0.398272]
[1730739644772,0.7543,2410.4,2409.5,0.48126662]
[1730739644773,4.90306,2410.4,2409.5,0.48126662]
[1730739644978,0.63157562,2410.9,2409.5,0.48126662]
[1730739644979,4.14814,2410.8,2409.9,4.14939]
[1730739645175,4.14836,2410.6,2409.9,4.14939]
[1730739645673,4.14831,2410.7,2410.0,3.0]
[1730739645915,4.14834,2410.6,2410.1,0.714939]
[1730739647026,4.14834,2410.6,2409.9,3.0]
[1730739647205,4.1488,2410.4,2409.9,3.0]
[1730739647377,4.14886,2410.3,2409.9,3.0]
[1730739647578,4.1488,2410.4,2409.9,3.0]
[1730739648214,4.14793,2410.9,2410.2,4.149]
[1730739648392,4.14724,2411.3,2410.5,3.0]
[1730739648606,0.01,2412.2,2410.7,7.29585432]
[1730739648607,4.1461,2411.9,2410.7,7.29585432]
[1730739648813,4.14657,2411.7,2410.9,0.7937]
[1730739649013,4.14662,2411.6,2411.0,4.14761]
[1730739649311,4.14628,2411.8,2411.2,4.14728]
[1730739649499,8.29243,2411.9,2411.3,0.414728]
[1730739649696,4.14584,2412.1,2411.3,0.414728]
[1730739650226,4.14584,2412.1,2411.3,4.70058232]
[1730739650381,4.14578,2412.1,2411.4,4.14686]
[1730739650581,4.14578,2412.1,2411.5,5.03153423]
[1730739650995,4.14548,2412.3,2411.7,3.0]
[1730739651196,4.92826,2412.5,2411.7,3.0]
[1730739651197,4.14516,2412.5,2411.8,4.22917296]
[1730739651425,4.1448,2412.7,2412.0,4.14582]
[1730739651630,4.14448,2412.9,2412.2,4.14558]
[1730739651836,4.1438,2413.3,2412.3,0.80574405]
[1730739652099,4.1438,2413.3,2412.2,0.01]
[1730739652100,4.1438,2413.3,2412.7,4.1447]
[1730739652328,4.1438,2413.3,2412.8,3.08287768]
[1730739652533,4.1438,2413.3,2412.5,3.0]
[1730739652714,4.14404,2413.1,2412.5,3.0]
[1730739652920,0.0599721,2413.4,2412.8,4.14451]
[1730739652921,4.2036321,2413.4,2412.8,4.14451]
[1730739653161,4.14384,2413.3,2412.8,1.12894]
[1730739653450,0.0599721,2413.4,2412.9,4.22711408]
[1730739653599,0.0599721,2413.4,2412.8,5.27349]
[1730739653600,0.0599721,2413.4,2413.3,3.8172]
[1730739653798,0.0599721,2414.6,2413.5,4.14324]
[1730739654044,4.14312,2413.7,2413.3,0.8072]
[1730739654205,4.14336,2413.5,2413.3,0.8072]
[1730739654553,4.14336,2413.5,2413.2,3.0]
[1730739654554,4.14389,2413.2,2412.7,0.8072]
[1730739654706,8.28788,2413.2,2412.7,0.8072]
[1730739655036,4.14363,2413.4,2412.8,3.0]
[1730739655195,0.414312,2413.7,2412.7,4.95179]
[1730739655196,4.14326,2413.6,2412.9,4.22719774]
[1730739655396,5.0133102,2413.6,2412.9,4.22719774]
[1730739655641,5.0133102,2413.6,2413.0,3.0]
[1730739655942,4.14289,2413.8,2413.0,3.0]
[1730739655943,4.14286,2413.8,2413.0,7.1442]
[1730739656146,4.14286,2413.8,2413.1,4.14394]
[1730739656350,4.14332,2413.6,2413.0,3.0]
[1730739656515,4.14332,2413.6,2412.9,4.14436]
[1730739656837,0.828623,2413.6,2412.7,0.8072]
[1730739657146,4.14365,2413.4,2412.7,4.95189]
[1730739657351,8.2873,2413.4,2412.7,4.95189]
[1730739657645,8.2873,2413.4,2412.7,0.8072]
[1730739657646,4.14365,2413.4,2412.7,0.8072]
[1730739657952,4.14393,2413.2,2412.7,4.95191]
[1730739658144,4.14365,2413.4,2412.8,4.14456]
[1730739658480,4.14404,2413.1,2412.7,0.8072]
[1730739658637,4.14388,2413.2,2412.7,0.8072]
[1730739658841,4.14388,2413.2,2412.4,4.14513]
[1730739659337,4.14439,2412.9,2412.4,4.14513]
[1730739659743,4.14439,2412.9,2412.3,0.7921]
[1730739659953,0.414439,2412.9,2411.9,4.1461]
[1730739660154,4.1457,2412.2,2411.6,4.14649]
[1730739660476,4.14479,2412.7,2411.6,4.14662]
[1730739660477,4.14473,2412.7,2411.6,4.14662]
[1730739660741,4.95172,2413.0,2411.6,4.14662]
[1730739660742,8.29035,2412.5,2411.8,4.14625]
[1730739660900,4.14462,2412.8,2411.7,4.14644]
[1730739660901,4.14553,2412.3,2411.7,4.14644]
[1730739661099,4.14553,2412.3,2411.4,0.8281]
[1730739661100,4.14588,2412.1,2411.5,4.14676]
[1730739661305,4.14588,2412.1,2411.4,4.97496]
[1730739661531,8.29105,2412.3,2411.7,4.14643]
[1730739661735,4.974605,2412.3,2411.7,4.22925984]
[1730739661945,4.145,2412.6,2412.0,4.14581]
[1730739662163,7.96166,2413.0,2411.6,4.87441195]
[1730739662381,4.14501,2412.6,2412.0,4.1459]
[1730739662864,4.14465,2412.8,2412.1,4.22852915]
[1730739663073,4.14484,2412.7,2412.2,0.7761]
[1730739663225,4.14475,2412.7,2412.2,0.7761]
[1730739663565,4.14465,2412.8,2412.2,4.92167]
[1730739663734,1.604988,2413.4,2412.3,3.0]
[1730739663937,4.14388,2413.2,2412.4,4.14515]
[1730739664169,4.14297,2413.8,2413.1,4.87441195]
[1730739664170,4.14284,2413.8,2413.1,4.87441195]
[1730739664463,4.14151,2414.6,2413.6,4.87441195]
[1730739664667,0.8036,2414.7,2413.4,4.14343]
[1730739664668,0.43103335,2413.7,2413.4,3.0]
[1730739664824,0.43103335,2413.7,2413.3,4.1437]
[1730739664825,4.14267,2413.9,2413.3,3.0]
[1730739665224,4.14285,2413.8,2413.3,3.0]
[1730739665460,0.828552,2413.8,2413.0,3.0]
[1730739665685,4.14371,2413.3,2412.8,0.8195]
[1730739666022,4.14389,2413.2,2412.8,0.8195]
[1730739666150,4.14389,2413.2,2412.6,3.0]
[1730739666543,4.14389,2413.2,2412.5,4.14496]
[1730739666544,4.1432,2413.6,2412.8,4.14444]
[1730739666860,4.1671088,2414.1,2412.8,4.14444]
[1730739666861,0.0147188,2414.1,2413.5,4.14334]
[1730739667027,0.51347468,2414.1,2413.5,4.14334]
[1730739667246,0.51347468,2414.1,2413.7,4.14301]
[1730739667533,0.0147188,2414.1,2414.0,4.9576]
[1730739667733,0.0147188,2414.1,2414.0,8.04043907]
[1730739667941,0.0147188,2414.1,2414.0,12.91485102]
[1730739668233,0.0147188,2414.1,2414.0,14.53776205]
[1730739668870,0.0147188,2414.1,2414.0,9.6633501]
[1730739669033,0.0147188,2414.1,2414.0,3.8151]
[1730739669230,0.0147188,2414.1,2414.0,7.9576]
[1730739669438,0.0147188,2414.1,2414.0,8.04044043]
[1730739669770,0.0147188,2414.1,2414.0,7.9576]
[1730739670130,0.0147188,2414.1,2414.0,8.0404363]
[1730739670334,0.0147188,2414.1,2414.0,9.17589963]
[1730739670679,0.0147188,2414.1,2414.0,7.9576]
[1730739671034,0.0147188,2414.1,2413.9,4.14256]
[1730739671279,0.0147188,2414.1,2413.7,8.28576]
[1730739671479,0.0147188,2414.1,2414.0,4.1425]
[1730739672895,0.0147188,2414.1,2413.3,4.14361]
[1730739672896,4.1428,2413.9,2413.3,4.14361]
[1730739673075,0.7712188,2414.1,2413.3,4.14361]
[1730739673076,4.55714,2413.8,2413.3,4.14361]
[1730739673374,8.70009,2413.8,2413.2,4.14384]
[1730739673592,4.14302,2413.7,2413.2,4.14384]
[1730739673777,4.55713,2413.8,2413.1,4.14403]
[1730739673778,4.14319,2413.6,2413.1,4.14403]
[1730739673985,4.598937,2413.6,2413.1,4.14394]
[1730739674793,0.7712188,2414.1,2412.8,8.68661195]
[1730739675003,4.14271,2413.9,2413.3,4.1436]
[1730739675158,4.14286,2413.8,2413.3,8.28719]
[1730739675486,4.14286,2413.8,2413.3,4.14359]
[1730739675667,4.971417,2413.8,2413.3,4.14359]
[1730739676005,4.971417,2413.8,2413.3,8.2872]
[1730739676173,4.14315,2413.7,2413.1,8.28785]
[1730739676362,9.114427,2413.8,2413.2,4.14375]
[1730739676562,4.971417,2413.8,2413.1,4.14392]
[1730739676791,4.971417,2413.8,2413.3,4.1437]
[1730739677200,0.828557,2413.8,2413.4,4.14342]
[1730739677509,0.828557,2413.8,2413.3,4.14358]
[1730739677664,0.828557,2413.8,2413.4,4.14345]
[1730739677855,4.14261,2414.0,2413.6,4.14316]
[1730739678060,4.14261,2414.0,2413.5,4.14335]
[1730739678307,8.28524,2414.0,2413.5,4.14326]
[1730739678470,8.28526,2414.0,2413.5,4.14326]
[1730739678683,4.14269,2413.9,2413.4,4.14352]
[1730739678998,4.14261,2414.0,2413.1,4.87441195]
[1730739678999,4.14261,2414.0,2413.6,4.14318]
[1730739679197,4.63399288,2414.0,2413.6,4.14318]
[1730739679402,4.63399288,2414.0,2413.1,9.01843195]
[1730739679601,4.14267,2413.9,2413.4,8.28685]
[1730739679774,0.49138288,2414.0,2413.6,8.28624]
[1730739679964,0.7712188,2414.1,2413.6,4.14306]
[1730739680286,0.7712188,2414.1,2413.7,4.143]
[1730739680496,4.9135588,2414.1,2413.6,4.14306]
[1730739680801,9.0560188,2414.1,2413.6,4.14308]
[1730739681102,4.9135588,2414.1,2413.6,4.14308]
[1730739681276,0.49135588,2414.0,2413.6,4.14308]
[1730739681598,4.63386588,2414.0,2413.6,4.14308]
[1730739681805,4.63386588,2414.0,2413.3,4.1436]
[1730739681806,4.14267,2413.9,2413.3,4.1436]
[1730739682309,4.14329,2413.6,2412.9,4.14425]
[1730739682461,4.557619,2413.6,2413.1,4.14401]
[1730739682664,4.14412,2413.1,2412.6,4.14481]
[1730739682992,4.14412,2413.1,2412.4,4.14522]
[1730739682993,4.14455,2412.9,2412.4,4.14522]
[1730739683192,4.92762,2413.3,2412.1,0.7595]
[1730739683193,4.14423,2413.0,2412.1,0.7595]
[1730739683398,9.07154,2413.3,2412.7,4.14457]
[1730739683559,5.834864,2413.3,2412.8,4.14447]
[1730739683766,5.834844,2413.3,2412.8,4.14447]
[1730739683966,5.834844,2413.3,2412.8,4.14456]
[1730739684299,5.834844,2413.3,2412.9,4.14437]
[1730739684850,1.691054,2413.3,2412.5,4.14507]
[1730739684968,4.92702,2413.7,2413.2,4.14375]
[1730739685302,0.7839,2413.7,2413.0,8.28821]
[1730739685488,4.14338,2413.5,2413.0,8.28822]
[1730739685671,0.7839,2413.7,2413.0,4.14421]
[1730739685876,4.92705,2413.7,2413.1,4.14404]
[1730739686199,0.7839,2413.7,2413.3,4.14362]
[1730739686407,4.14293,2413.8,2413.4,4.14353]
[1730739686700,1.26085588,2414.0,2413.6,4.14306]
[1730739686911,1.26085588,2414.0,2413.3,0.08286645]
[1730739686912,0.7695,2414.0,2413.4,4.14339]
[1730739687221,0.7695,2414.0,2413.0,4.14411]
[1730739687222,4.14354,2413.4,2413.0,4.14411]
[1730739687498,4.14337,2413.5,2413.0,4.1442]
[1730739687685,4.14337,2413.5,2413.0,4.14413]
[1730739687896,4.14367,2413.4,2412.9,4.14435]
[1730739688062,4.14329,2413.6,2412.9,4.14427]
[1730739688262,4.14353,2413.4,2412.9,4.14427]
[1730739688689,4.14396,2413.2,2412.7,4.14458]
[1730739688889,4.14396,2413.2,2412.6,7.14482]
[1730739688890,4.14415,2413.1,2412.6,7.14482]
[1730739690002,4.14415,2413.1,2412.7,4.14472]
[1730739690300,4.1439,2413.2,2412.8,4.14452]
[1730739690515,4.14389,2413.2,2412.8,4.14452]
[1730739691305,4.14389,2413.2,2412.7,4.14464]
[1730739691470,4.14389,2413.2,2412.6,4.1449]
[1730739691996,4.14389,2413.2,2412.8,4.14455]
[1730739692161,4.93815,2413.3,2412.8,4.14455]
[1730739692162,4.93802,2413.3,2412.8,4.14445]
[1730739692389,5.84617,2413.3,2412.9,4.14434]
[1730739692595,4.14343,2413.5,2413.0,4.14411]
[1730739692806,4.14343,2413.5,2412.8,4.14443]
[1730739693034,4.14361,2413.4,2412.9,4.14431]
[1730739693234,4.1438,2413.3,2412.8,8.28889]
[1730739693440,4.972541,2413.3,2412.8,4.14443]
[1730739693656,4.14387,2413.2,2412.6,4.14482]
[1730739693792,4.14413,2413.1,2412.6,4.1448]
[1730739693997,4.14509,2412.5,2412.0,4.14582]
[1730739694238,4.14556,2412.3,2411.8,4.1462]
[1730739694536,0.78,2412.8,2412.2,4.14551]
[1730739694537,4.14498,2412.6,2412.2,4.14551]
[1730739694694,0.37631678,2412.5,2411.7,4.14643]
[1730739694896,4.52163678,2412.4,2411.9,8.29196]
[1730739695235,0.37631678,2412.3,2412.2,4.14559]
[1730739695532,4.14474,2412.7,2412.3,4.14531]
[1730739695831,0.37659555,2412.6,2412.3,4.14537]
[1730739696049,0.37659555,2412.5,2412.3,4.14529]
[1730739696346,0.37659555,2412.4,2412.3,4.14529]
[1730739696641,0.37659555,2412.6,2412.3,4.14529]
[1730739696839,0.37680845,2412.5,2412.4,4.2281395]
[1730739696996,0.8069,2413.1,2412.7,4.14463]
[1730739697198,0.37682838,2413.0,2412.9,4.14434]
[1730739697793,4.14371,2413.3,2412.9,4.14434]
[1730739697998,0.37709921,2413.0,2412.9,4.14428]
[1730739698404,4.14371,2413.3,2412.9,4.14428]
[1730739698405,0.37709921,2413.2,2412.9,4.14428]
[1730739698760,0.37709921,2413.1,2412.7,4.14469]
[1730739698966,0.37709921,2413.0,2412.7,4.14469]
[1730739699265,0.37709921,2412.9,2412.7,4.14469]
[1730739699559,4.14395,2413.2,2412.8,4.14456]
[1730739699731,4.52119644,2413.1,2412.6,4.14473]
[1730739700063,0.37714644,2413.0,2412.4,11.29027]
[1730739700218,1.17294644,2412.9,2412.2,4.14543]
[1730739700418,0.37714644,2412.8,2412.1,4.14576]
[1730739700618,4.14501,2412.6,2412.2,4.14548]
[1730739700833,0.37714644,2412.7,2412.2,4.14548]
[1730739700834,0.37714644,2412.5,2412.2,4.14548]
[1730739701055,4.14491,2412.6,2412.2,4.14548]
[1730739701255,0.37707089,2412.5,2412.2,4.14548]
[1730739701454,4.14474,2412.7,2412.1,4.1456]
[1730739701664,0.37708502,2412.6,2412.1,4.1456]
[1730739701961,0.37708502,2412.5,2412.1,4.1456]
[1730739702168,4.14474,2412.7,2412.1,4.1456]
[1730739702334,4.14552,2412.3,2411.8,4.14627]
[1730739702671,4.14552,2412.3,2411.9,4.22900387]
[1730739702832,4.14552,2412.3,2411.7,0.7518]
[1730739703165,0.37702,2412.2,2411.9,4.14599]
[1730739703370,8.2904,2412.5,2412.0,4.14585]
[1730739703575,0.37708023,2412.4,2412.0,4.14585]
[1730739703794,8.2904,2412.5,2412.0,4.14585]
[1730739703960,0.494054,2412.7,2411.2,5.85656997]
[1730739703961,4.90593,2412.3,2411.4,0.85314526]
[1730739704293,4.90593,2412.3,2411.3,6.67231505]
[1730739704294,4.14635,2411.8,2411.3,1.244428]
[1730739704476,4.52268654,2412.2,2410.9,5.42864705]
[1730739704477,4.14671,2411.6,2411.1,4.14734]
[1730739704683,4.14637,2411.8,2411.3,4.14699]
[1730739705095,4.14637,2411.8,2411.3,8.29405]
[1730739705297,4.14646,2411.7,2411.3,4.14699]
[1730739705499,4.14637,2411.8,2411.3,4.14699]
[1730739705682,4.636233,2412.2,2411.3,4.14699]
[1730739705683,0.490593,2412.2,2411.4,4.14696]
[1730739706009,4.14629,2411.8,2411.4,4.14696]
[1730739706197,4.14613,2411.9,2411.5,4.14678]
[1730739706400,4.14596,2412.0,2411.5,4.14678]
[1730739706598,4.90605,2412.3,2411.8,4.14626]
[1730739706905,4.90605,2412.3,2411.9,4.14605]
[1730739707063,4.14555,2412.3,2411.9,4.14605]
[1730739707263,4.92919,2412.6,2412.1,4.14568]
[1730739707471,0.7842,2412.6,2411.9,0.829224]
[1730739707695,4.14569,2412.2,2411.7,7.14634]
[1730739707896,0.7842,2412.6,2411.4,0.7731]
[1730739708100,4.14524,2412.4,2411.4,3.7731]
[1730739708425,4.14524,2412.4,2411.8,4.14616]
[1730739708426,4.14552,2412.3,2411.8,4.14616]
[1730739708626,4.14507,2412.5,2411.9,4.14603]
[1730739708778,4.14517,2412.5,2412.0,4.14581]
[1730739708977,4.92913,2412.6,2412.1,4.14575]
[1730739709334,4.14465,2412.8,2412.4,4.14524]
[1730739710215,4.14473,2412.7,2412.3,4.14538]
[1730739710377,4.14465,2412.8,2412.3,4.14538]
[1730739710583,4.14465,2412.8,2412.4,4.14524]
[1730739710893,0.7506,2413.3,2412.3,4.22822971]
[1730739711092,4.14439,2412.9,2412.4,4.14524]
[1730739711292,4.14419,2413.1,2412.6,4.14483]
[1730739711478,4.14419,2413.1,2412.5,4.14495]
[1730739711674,4.14396,2413.2,2412.8,4.14446]
[1730739712003,4.14387,2413.2,2412.5,4.14497]
[1730739712204,4.14387,2413.2,2412.4,3.0]
[1730739712205,4.14446,2412.9,2412.4,3.0]
[1730739712432,0.489447,2413.2,2412.3,4.14528]
[1730739712433,4.14482,2412.7,2412.3,4.14528]
[1730739712579,4.14424,2413.0,2412.1,4.91436]
[1730739712918,4.14459,2412.8,2412.4,4.14521]
[1730739713212,4.14414,2413.1,2412.6,4.14484]
[1730739713424,5.3969527,2413.1,2412.2,7.14557]
[1730739713725,4.14417,2413.1,2412.6,4.14488]
[1730739714195,0.7506,2413.3,2412.2,7.14552]
[1730739714196,4.14455,2412.9,2412.2,7.14552]
[1730739714523,4.14474,2412.7,2412.3,4.14533]
[1730739714882,4.14492,2412.6,2412.2,4.14556]
[1730739715093,4.14474,2412.7,2412.3,4.14541]
[1730739715290,4.14459,2412.8,2412.4,4.14524]
[1730739715721,4.14459,2412.8,2412.1,3.7687]
[1730739715921,4.14448,2412.9,2412.1,3.7687]
[1730739715922,4.14448,2412.9,2412.3,4.14527]
[1730739716230,4.14471,2412.8,2412.3,4.14527]
[1730739716433,4.14471,2412.8,2412.3,8.29056]
[1730739716728,8.28938,2412.8,2412.3,4.14527]
[1730739716918,4.14467,2412.8,2412.3,8.29057]
[1730739717298,4.14439,2412.9,2412.4,4.22804199]
[1730739717496,4.14439,2412.9,2412.4,4.14511]
[1730739717696,8.28895,2412.9,2412.4,4.14511]
[1730739717920,4.14469,2412.8,2412.4,4.14511]
[1730739718124,4.14474,2412.7,2412.3,4.14541]
[1730739718498,4.14497,2412.6,2412.2,4.14548]
[1730739718700,4.14549,2412.3,2411.9,4.14603]
[1730739719108,4.14533,2412.4,2412.0,4.14593]
[1730739719611,4.14517,2412.5,2411.9,4.14607]
[1730739719808,4.14508,2412.5,2412.1,4.14575]
[1730739720132,4.14508,2412.5,2412.0,4.14578]
[1730739720438,4.14531,2412.4,2412.0,4.14578]
[1730739720651,4.14524,2412.4,2411.6,0.8059]
[1730739720953,4.14583,2412.1,2411.7,4.14631]
[1730739721238,4.14555,2412.3,2411.8,4.14619]
[1730739721532,4.14555,2412.3,2411.9,4.14608]
[1730739721705,4.14524,2412.4,2412.0,4.14586]
[1730739722095,4.14511,2412.5,2412.1,4.14572]
[1730739722348,0.37828026,2412.4,2412.1,4.14572]
[1730739722553,0.37828026,2412.4,2412.0,4.14586]
[1730739722554,4.14527,2412.4,2412.0,4.14589]
[1730739722738,4.145,2412.6,2412.2,4.14559]
[1730739723047,4.95603,2412.7,2412.2,4.14559]
[1730739723249,4.5232773,2412.6,2412.2,4.14559]
[1730739723451,0.8112,2412.7,2412.3,4.14534]
[1730739723767,8.28931,2412.8,2412.3,4.14533]
[1730739723953,4.52312911,2412.7,2412.3,4.14533]
[1730739724114,4.52312911,2412.7,2412.2,0.8116]
[1730739724115,4.14475,2412.7,2412.2,0.8116]
[1730739724308,4.14439,2412.9,2412.0,4.61077913]
[1730739724547,4.14532,2412.4,2412.0,4.14583]
[1730739725251,4.14516,2412.5,2412.1,4.14569]
[1730739725555,4.14491,2412.6,2412.2,4.14545]
[1730739725750,0.37848967,2412.5,2412.2,4.14545]
[1730739725908,4.14491,2412.6,2412.1,4.14569]
[1730739726108,4.14491,2412.6,2412.1,8.29136]
[1730739726419,4.14491,2412.6,2412.2,4.14558]
[1730739727605,8.28994,2412.6,2412.2,4.14558]
[1730739727809,4.14516,2412.5,2412.0,4.14592]
[1730739728110,4.14516,2412.5,2412.1,4.14574]
[1730739728844,0.829007,2412.5,2411.9,4.9576]
[1730739729009,4.14543,2412.3,2411.9,4.146]
[1730739730235,4.14583,2412.1,2411.7,4.14636]
[1730739730437,4.89775,2412.5,2411.7,4.14634]
[1730739730637,4.89775,2412.5,2411.6,0.8007]
[1730739730638,4.14612,2411.9,2411.6,0.8007]
[1730739730874,4.14601,2412.0,2411.6,4.94729]
[1730739732264,4.14601,2412.0,2411.6,0.8007]
[1730739732486,0.489775,2412.4,2411.3,4.90579]
[1730739732647,4.14628,2411.8,2411.3,0.7588]
[1730739732845,4.14652,2411.7,2411.3,4.90592]
[1730739733239,4.14628,2411.8,2411.4,4.14689]
[1730739733682,4.14628,2411.8,2411.3,4.90582]
[1730739733977,4.14592,2412.1,2411.6,4.1466]
[1730739734139,0.37864053,2412.0,2411.6,4.14656]
[1730739734344,4.14589,2412.1,2411.7,4.14643]
[1730739734583,0.37869756,2412.0,2411.7,4.14643]
[1730739734780,4.14577,2412.1,2411.7,4.14643]
[1730739734983,0.37876605,2412.0,2411.7,4.14643]
[1730739735168,8.29166,2412.1,2411.6,4.14656]
[1730739735369,4.14595,2412.0,2411.6,4.14656]
[1730739735571,4.14577,2412.1,2411.6,4.14648]
[1730739735756,0.37890205,2412.0,2411.7,4.14636]
[1730739735960,4.14577,2412.1,2411.7,4.14636]
[1730739736154,0.37889626,2412.0,2411.7,4.14636]
[1730739736358,4.14577,2412.1,2411.7,4.14636]
[1730739736557,4.14491,2412.6,2411.9,0.7827]
[1730739736788,4.14482,2412.7,2412.2,4.14557]
[1730739737085,4.14519,2412.5,2411.9,0.7827]
[1730739737245,4.14519,2412.5,2411.9,4.14601]
[1730739737246,5.33251366,2412.4,2411.9,4.14601]
[1730739737597,4.14559,2412.2,2411.8,4.14627]
[1730739737802,4.95354,2412.4,2411.8,4.14627]
[1730739738088,4.14567,2412.2,2411.7,4.14643]
[1730739738302,4.14567,2412.2,2411.8,4.14619]
[1730739738596,8.29138,2412.2,2411.8,4.14619]
[1730739738893,8.29138,2412.2,2411.7,4.14641]
[1730739739101,4.14612,2411.9,2411.5,4.14676]
[1730739739285,8.29202,2412.0,2411.6,4.14655]
[1730739739589,4.146,2412.0,2411.6,4.14655]
[1730739739756,4.146,2412.0,2411.4,7.14684]
[1730739739956,4.146,2412.0,2411.5,4.14671]
[1730739739957,4.14623,2411.9,2411.5,4.14671]
[1730739740270,4.14594,2412.0,2411.5,4.1467]
[1730739741087,4.52498009,2412.1,2411.6,4.14654]
[1730739741405,2.13285491,2412.8,2412.0,4.14584]
[1730739741406,4.14518,2412.5,2412.0,4.14584]
[1730739741550,3.0,2412.9,2412.3,4.14542]
[1730739741551,0.37905117,2412.4,2412.3,4.14542]
[1730739741751,0.37905117,2412.4,2412.3,4.95812]
[1730739742785,0.37905117,2412.4,2412.0,3.0]
[1730739742985,0.37905117,2412.4,2411.3,0.490582]
[1730739743188,0.37905117,2412.4,2411.3,0.7932]
[1730739743355,0.37905117,2412.4,2411.4,0.26375779]
[1730739743700,4.14614,2411.9,2411.4,4.14686]
[1730739743865,4.14542,2412.3,2411.5,0.26377217]
[1730739744069,4.14542,2412.3,2411.3,0.7932]
[1730739744070,4.1463,2411.8,2411.3,0.08293284]
[1730739744264,4.1463,2411.8,2411.3,4.49375982]
[1730739744464,4.14653,2411.7,2411.2,4.14727]
[1730739744665,4.14671,2411.6,2411.3,0.26374832]
[1730739744868,4.14659,2411.7,2411.2,4.41093832]
[1730739745091,4.14623,2411.9,2411.4,4.14686]
[1730739745414,4.14594,2412.0,2411.5,4.22964708]
[1730739745708,6.26856314,2412.5,2411.2,1.36322909]
[1730739745709,4.92537,2412.6,2411.7,0.7796]
[1730739745850,4.14486,2412.7,2412.3,4.1454]
[1730739746054,2.12339314,2412.8,2412.3,8.2907]
[1730739746055,0.37923015,2412.6,2412.3,8.2907]
[1730739746250,0.37923015,2412.6,2412.3,0.7796]
[1730739747005,0.37923015,2412.6,2411.9,0.7774]
[1730739747290,4.14595,2412.0,2411.5,4.14671]
[1730739747503,4.1462,2411.9,2411.4,4.92429]
[1730739747650,4.1462,2411.9,2411.4,9.07117]
[1730739747852,4.1462,2411.9,2411.5,4.41064606]
[1730739748052,4.1462,2411.9,2411.5,4.14678]
[1730739748400,5.18888948,2412.6,2411.6,5.31758362]
[1730739748401,4.14586,2412.1,2411.6,5.31758362]
[1730739748567,4.14586,2412.1,2411.7,0.26386762]
[1730739748767,8.29172,2412.1,2411.7,3.0]
[1730739748986,8.29171,2412.1,2411.7,3.0]
[1730739749181,4.14589,2412.1,2411.7,3.0]
[1730739749499,8.29134,2412.2,2411.7,7.9517216]
[1730739750209,0.8175,2412.5,2411.7,3.8053716]
[1730739750210,4.14601,2412.0,2411.7,3.8053716]
[1730739750384,4.14601,2412.0,2411.6,3.0]
[1730739750702,4.14601,2412.0,2411.6,7.14661]
[1730739750875,4.14583,2412.1,2411.6,4.14645]
[1730739751280,4.14576,2412.1,2411.6,4.14645]
[1730739751866,4.14593,2412.0,2411.4,7.92426]
[1730739752067,4.14593,2412.0,2411.6,4.14662]
[1730739752261,4.14593,2412.0,2411.4,9.28146016]
[1730739752262,4.14544,2412.3,2411.7,0.08292073]
[1730739752492,8.29063,2412.4,2411.8,4.14611]
[1730739752700,0.8175,2412.5,2412.0,4.1459]
[1730739752898,4.1448,2412.7,2412.2,4.14557]
[1730739753163,2.12339314,2412.8,2412.4,4.14521]
[1730739753393,2.12339314,2412.8,2412.5,4.145]
[1730739753596,2.12339314,2412.8,2412.6,4.14478]
[1730739753823,4.14405,2413.1,2412.6,4.14478]
[1730739753965,0.8295,2413.2,2412.1,0.8085]
[1730739754166,4.14515,2412.5,2412.1,0.8085]
[1730739754464,4.14533,2412.4,2411.8,3.7548]
[1730739754817,4.14553,2412.3,2411.9,0.26383525]
[1730739755118,4.14533,2412.4,2412.0,3.26383525]
[1730739755309,4.14507,2412.5,2411.5,4.14665]
[1730739755522,4.14595,2412.0,2411.6,0.26383324]
[1730739755662,4.14595,2412.0,2411.5,4.14665]
[1730739756066,4.14595,2412.0,2411.6,4.41047133]
[1730739756392,4.642697,2412.4,2411.9,4.14601]
[1730739756393,4.14524,2412.4,2411.9,4.14601]
[1730739756596,0.8295,2412.6,2411.7,4.14634]
[1730739756928,4.14552,2412.3,2411.8,4.41012245]
[1730739757134,4.14552,2412.3,2411.7,4.14634]
[1730739757135,4.14571,2412.2,2411.6,4.14645]
[1730739757333,4.14571,2412.2,2411.7,4.975749]
[1730739757504,4.14571,2412.2,2411.7,5.23955238]
[1730739757705,4.14552,2412.3,2411.8,4.41006338]
[1730739757905,0.7637,2412.2,2411.7,0.829309]
[1730739758135,4.14577,2412.1,2411.7,0.829309]
[1730739758739,4.14526,2412.4,2411.9,4.14602]
[1730739759045,4.14602,2412.0,2411.6,3.0]
[1730739759197,0.8278,2412.5,2411.7,4.41027714]
[1730739759198,4.14567,2412.2,2411.7,4.41027714]
[1730739759392,4.14567,2412.2,2411.8,0.26392714]
[1730739759696,4.97299,2412.5,2411.9,4.14609]
[1730739759902,4.14519,2412.5,2412.0,4.49262274]
[1730739760104,4.14492,2412.6,2412.1,4.14567]
[1730739760407,4.14492,2412.6,2412.1,5.75581008]
[1730739760792,4.14482,2412.7,2412.1,5.75581008]
[1730739761198,4.14493,2412.6,2412.1,5.75590008]
[1730739761437,4.14509,2412.5,2412.1,5.75590008]
[1730739761653,4.14493,2412.6,2412.1,5.75582008]
[1730739761796,8.28992,2412.6,2412.1,5.75582008]
[1730739762144,0.7539,2412.8,2412.0,3.0]
[1730739762145,4.14543,2412.3,2412.0,3.0]